[Event "Titled Tuesday Blitz April 05 Early 2022"]
[White "Lehtosaari, Mauri"]
[Black "Jaskolka, Tomasz"]
[WhiteFideId "501999"]
[BlackFideId "1170791"]
[WhiteElo "2537"]
[BlackElo "2073"]
[Result "0-1"]
[Round "09"]
[TimeControl "180+1"]
[Date "2022.04.05"]
[WhiteClock "0:00:36"]
[BlackClock "0:00:16"]

1. d4 {[%clk 0:03:00]}  e6 {[%clk 0:02:57]} 2. Nf3 {[%clk 0:02:56]}  Nf6 {[%clk 0:02:53]} 3. g3 {[%clk 0:02:56]}  b6 {[%clk 0:02:50]} 4. Bg2 {[%clk 0:02:55]}  Bb7 {[%clk 0:02:50]} 5. O-O {[%clk 0:02:56]}  d6 {[%clk 0:02:51]} 6. b3 {[%clk 0:02:56]}  Be7 {[%clk 0:02:51]} 7. Bb2 {[%clk 0:02:57]}  Nbd7 {[%clk 0:02:52]} 8. Nbd2 {[%clk 0:02:55]}  O-O {[%clk 0:02:53]} 9. c4 {[%clk 0:02:53]}  Ne4 {[%clk 0:02:51]} 10. Nxe4 {[%clk 0:02:49]}  Bxe4 {[%clk 0:02:52]} 11. Rc1 {[%clk 0:02:39]}  f5 {[%clk 0:02:48]} 12. b4 {[%clk 0:02:31]}  d5 {[%clk 0:02:32]} 13. c5 {[%clk 0:02:27]}  a5 {[%clk 0:02:15]} 14. a3 {[%clk 0:02:10]}  axb4 {[%clk 0:02:09]} 15. axb4 {[%clk 0:02:11]}  b5 {[%clk 0:02:07]} 16. Ne1 {[%clk 0:01:57]}  Bxg2 {[%clk 0:02:04]} 17. Nxg2 {[%clk 0:01:58]}  Bg5 {[%clk 0:01:54]} 18. Ra1 {[%clk 0:01:57]}  c6 {[%clk 0:01:49]} 19. Qc2 {[%clk 0:01:50]}  Qc7 {[%clk 0:01:45]} 20. Rxa8 {[%clk 0:01:44]}  Rxa8 {[%clk 0:01:46]} 21. Bc1 {[%clk 0:01:45]}  Bxc1 {[%clk 0:01:44]} 22. Rxc1 {[%clk 0:01:43]}  g6 {[%clk 0:01:18]} 23. Nf4 {[%clk 0:01:39]}  e5 {[%clk 0:01:19]} 24. Ne6 {[%clk 0:01:30]}  Qa7 {[%clk 0:00:41]} 25. Qd2 {[%clk 0:01:28]}  e4 {[%clk 0:00:33]} 26. Qg5 {[%clk 0:01:23]}  Nf8 {[%clk 0:00:32]} 27. Nxf8 {[%clk 0:01:13]}  Rxf8 {[%clk 0:00:28]} 28. h4 {[%clk 0:01:11]}  Qa3 {[%clk 0:00:19]} 29. Rb1 {[%clk 0:01:08]}  Qc3 {[%clk 0:00:16]} 30. Qe7 {[%clk 0:01:04]}  Qxd4 {[%clk 0:00:15]} 31. Qe6+ {[%clk 0:01:04]}  Kh8 {[%clk 0:00:15]} 32. Qxc6 {[%clk 0:01:04]}  f4 {[%clk 0:00:16]} 33. gxf4 {[%clk 0:00:59]}  e3 {[%clk 0:00:16]} 34. Rf1 {[%clk 0:00:55]}  Qxf4 {[%clk 0:00:16]} 35. Qxd5 {[%clk 0:00:52]}  exf2+ {[%clk 0:00:16]} 36. Kg2 {[%clk 0:00:50]}  Qg4+ {[%clk 0:00:17]} 37. Kh2 {[%clk 0:00:50]}  Qxh4+ {[%clk 0:00:17]} 38. Kg2 {[%clk 0:00:51]}  Rf5 {[%clk 0:00:15]} 39. Qa8+ {[%clk 0:00:43]}  Kg7 {[%clk 0:00:15]} 40. Qb7+ {[%clk 0:00:42]}  Kh6 {[%clk 0:00:16]} 41. Rxf2 {[%clk 0:00:36]}  Rxf2+ {[%clk 0:00:15]} 42. Kg1 {[%clk 0:00:36]}  Qh2# {[%clk 0:00:16]} 0-1


[Site "https://www.chess.com"]

[Event "Titled Tuesday Blitz April 05 Early 2022"]
[White "Madaminov, Mukhiddin"]
[Black "Petrovic, Aleksa"]
[WhiteFideId "14210703"]
[BlackFideId "967629"]
[WhiteElo "1916"]
[BlackElo "2198"]
[Result "1-0"]
[Round "09"]
[TimeControl "180+1"]
[Date "2022.04.05"]
[WhiteClock "0:01:20"]
[BlackClock "0:00:06"]

1. e4 {[%clk 0:03:00]}  c5 {[%clk 0:02:58]} 2. Nf3 {[%clk 0:02:59]}  e6 {[%clk 0:02:58]} 3. d4 {[%clk 0:02:57]}  cxd4 {[%clk 0:02:59]} 4. Nxd4 {[%clk 0:02:58]}  a6 {[%clk 0:02:59]} 5. c4 {[%clk 0:02:51]}  Nf6 {[%clk 0:02:58]} 6. Nc3 {[%clk 0:02:51]}  Qc7 {[%clk 0:02:58]} 7. Bd3 {[%clk 0:02:50]}  Nc6 {[%clk 0:02:57]} 8. Be3 {[%clk 0:02:44]}  Ne5 {[%clk 0:02:55]} 9. Qe2 {[%clk 0:02:41]}  b6 {[%clk 0:02:46]} 10. O-O {[%clk 0:02:39]}  Nfg4 {[%clk 0:02:32]} 11. Bf4 {[%clk 0:02:25]}  Bd6 {[%clk 0:02:21]} 12. Ndb5 {[%clk 0:02:17]}  axb5 {[%clk 0:02:19]} 13. Nxb5 {[%clk 0:02:18]}  Qb8 {[%clk 0:02:12]} 14. Nxd6+ {[%clk 0:02:18]}  Qxd6 {[%clk 0:02:12]} 15. Qxg4 {[%clk 0:02:18]}  Nxg4 {[%clk 0:01:29]} 16. Bxd6 {[%clk 0:02:16]}  Bb7 {[%clk 0:01:27]} 17. f3 {[%clk 0:02:15]}  Nh6 {[%clk 0:01:17]} 18. Bc7 {[%clk 0:02:14]}  f5 {[%clk 0:01:10]} 19. Bxb6 {[%clk 0:02:06]}  fxe4 {[%clk 0:01:06]} 20. Bxe4 {[%clk 0:02:06]}  Bxe4 {[%clk 0:01:05]} 21. fxe4 {[%clk 0:02:07]}  Ke7 {[%clk 0:01:04]} 22. a4 {[%clk 0:02:07]}  Nf7 {[%clk 0:00:59]} 23. a5 {[%clk 0:02:06]}  Ne5 {[%clk 0:00:58]} 24. b3 {[%clk 0:02:04]}  d6 {[%clk 0:00:48]} 25. Rfd1 {[%clk 0:02:01]}  Rhc8 {[%clk 0:00:40]} 26. Ra2 {[%clk 0:01:59]}  Nd7 {[%clk 0:00:37]} 27. Bd4 {[%clk 0:01:54]}  e5 {[%clk 0:00:22]} 28. Be3 {[%clk 0:01:52]}  Nc5 {[%clk 0:00:22]} 29. Bxc5 {[%clk 0:01:51]}  Rxc5 {[%clk 0:00:21]} 30. Rd5 {[%clk 0:01:51]}  Kd7 {[%clk 0:00:12]} 31. Kf2 {[%clk 0:01:37]}  Kc6 {[%clk 0:00:12]} 32. Ke3 {[%clk 0:01:37]}  Rxd5 {[%clk 0:00:09]} 33. exd5+ {[%clk 0:01:36]}  Kc5 {[%clk 0:00:09]} 34. Kd3 {[%clk 0:01:24]}  Kb4 {[%clk 0:00:07]} 35. Kc2 {[%clk 0:01:24]}  Rf8 {[%clk 0:00:06]} 36. Ra4+ {[%clk 0:01:23]}  Kc5 {[%clk 0:00:06]} 37. Kc3 {[%clk 0:01:20]} 1-0


[Site "https://www.chess.com"]

[Event "Titled Tuesday Blitz April 05 Early 2022"]
[White "Manukian, Artak"]
[Black "Golubeva, Oksana"]
[WhiteFideId "13301373"]
[BlackFideId "4170164"]
[WhiteElo "2363"]
[BlackElo "2162"]
[Result "0-1"]
[Round "09"]
[TimeControl "180+1"]
[Date "2022.04.05"]
[WhiteClock "0:00:01"]
[BlackClock "0:00:03"]

1. e4 {[%clk 0:02:59]}  e6 {[%clk 0:03:00]} 2. d4 {[%clk 0:02:57]}  d5 {[%clk 0:03:00]} 3. e5 {[%clk 0:02:57]}  c5 {[%clk 0:03:00]} 4. c3 {[%clk 0:02:58]}  Nc6 {[%clk 0:03:00]} 5. Nf3 {[%clk 0:02:57]}  Qb6 {[%clk 0:03:00]} 6. a3 {[%clk 0:02:57]}  c4 {[%clk 0:03:00]} 7. Nbd2 {[%clk 0:02:56]}  Na5 {[%clk 0:03:00]} 8. Rb1 {[%clk 0:02:56]}  Bd7 {[%clk 0:03:00]} 9. g3 {[%clk 0:02:55]}  Nb3 {[%clk 0:02:55]} 10. Nxb3 {[%clk 0:02:54]}  Ba4 {[%clk 0:02:55]} 11. Nfd2 {[%clk 0:02:52]}  Ne7 {[%clk 0:02:55]} 12. Bh3 {[%clk 0:02:40]}  Nc6 {[%clk 0:02:55]} 13. O-O {[%clk 0:02:36]}  Na5 {[%clk 0:02:53]} 14. f4 {[%clk 0:02:33]}  g6 {[%clk 0:02:52]} 15. Bg2 {[%clk 0:02:22]}  h5 {[%clk 0:02:35]} 16. h3 {[%clk 0:02:21]}  O-O-O {[%clk 0:02:34]} 17. Qe2 {[%clk 0:02:14]}  Nxb3 {[%clk 0:02:30]} 18. Nxb3 {[%clk 0:02:13]}  Qxb3 {[%clk 0:02:30]} 19. Be3 {[%clk 0:02:09]}  Qc2 {[%clk 0:02:27]} 20. Rbe1 {[%clk 0:01:47]}  Bh6 {[%clk 0:01:58]} 21. Rf2 {[%clk 0:01:44]}  Qxe2 {[%clk 0:01:53]} 22. Rfxe2 {[%clk 0:01:40]}  Rhg8 {[%clk 0:01:38]} 23. Rf1 {[%clk 0:01:33]}  a5 {[%clk 0:01:31]} 24. Kh2 {[%clk 0:01:23]}  Kc7 {[%clk 0:01:30]} 25. g4 {[%clk 0:01:22]}  hxg4 {[%clk 0:01:30]} 26. hxg4 {[%clk 0:01:23]}  Rh8 {[%clk 0:01:30]} 27. Kg3 {[%clk 0:01:23]}  Rh7 {[%clk 0:01:05]} 28. Rh1 {[%clk 0:01:22]}  Rdh8 {[%clk 0:01:03]} 29. Rh3 {[%clk 0:01:08]}  Bf8 {[%clk 0:00:56]} 30. Rxh7 {[%clk 0:01:04]}  Rxh7 {[%clk 0:00:56]} 31. f5 {[%clk 0:00:58]}  gxf5 {[%clk 0:00:52]} 32. gxf5 {[%clk 0:00:58]}  Rg7+ {[%clk 0:00:30]} 33. Kh2 {[%clk 0:00:57]}  Rxg2+ {[%clk 0:00:24]} 34. Rxg2 {[%clk 0:00:51]}  exf5 {[%clk 0:00:24]} 35. Rg8 {[%clk 0:00:44]}  Be7 {[%clk 0:00:19]} 36. Bg5 {[%clk 0:00:40]}  Bxg5 {[%clk 0:00:15]} 37. Rxg5 {[%clk 0:00:41]}  Bd7 {[%clk 0:00:15]} 38. Kg3 {[%clk 0:00:41]}  Kb6 {[%clk 0:00:14]} 39. Rg8 {[%clk 0:00:40]}  Kb5 {[%clk 0:00:13]} 40. Rb8 {[%clk 0:00:33]}  b6 {[%clk 0:00:11]} 41. Kf4 {[%clk 0:00:32]}  Be6 {[%clk 0:00:11]} 42. Kg5 {[%clk 0:00:32]}  Kc6 {[%clk 0:00:10]} 43. Kf6 {[%clk 0:00:32]}  f4 {[%clk 0:00:10]} 44. Rg8 {[%clk 0:00:29]}  Kb5 {[%clk 0:00:04]} 45. Rg1 {[%clk 0:00:18]}  Ka4 {[%clk 0:00:04]} 46. Rf1 {[%clk 0:00:17]}  Kb3 {[%clk 0:00:04]} 47. Rxf4 {[%clk 0:00:17]}  Kxb2 {[%clk 0:00:05]} 48. Ke7 {[%clk 0:00:17]}  Kxc3 {[%clk 0:00:04]} 49. Rxf7 {[%clk 0:00:17]}  Bxf7 {[%clk 0:00:03]} 50. Kxf7 {[%clk 0:00:18]}  Kxd4 {[%clk 0:00:04]} 51. e6 {[%clk 0:00:19]}  c3 {[%clk 0:00:04]} 52. e7 {[%clk 0:00:19]}  c2 {[%clk 0:00:05]} 53. e8=Q {[%clk 0:00:19]}  c1=Q {[%clk 0:00:06]} 54. Qh8+ {[%clk 0:00:18]}  Kd3 {[%clk 0:00:06]} 55. Qh3+ {[%clk 0:00:17]}  Kc2 {[%clk 0:00:05]} 56. Qg2+ {[%clk 0:00:17]}  Qd2 {[%clk 0:00:05]} 57. Qg6+ {[%clk 0:00:17]}  Qd3 {[%clk 0:00:04]} 58. Qxb6 {[%clk 0:00:17]}  d4 {[%clk 0:00:05]} 59. Qxa5 {[%clk 0:00:17]}  Qb3+ {[%clk 0:00:05]} 60. Kf6 {[%clk 0:00:14]}  Qc3 {[%clk 0:00:06]} 61. Qf5+ {[%clk 0:00:13]}  d3+ {[%clk 0:00:06]} 62. Kg5 {[%clk 0:00:12]}  Qg7+ {[%clk 0:00:05]} 63. Kf4 {[%clk 0:00:12]}  Qg2 {[%clk 0:00:05]} 64. Qc5+ {[%clk 0:00:11]}  Kd1 {[%clk 0:00:05]} 65. Qc3 {[%clk 0:00:07]}  d2 {[%clk 0:00:04]} 66. Qb3+ {[%clk 0:00:07]}  Ke1 {[%clk 0:00:05]} 67. Qe3+ {[%clk 0:00:07]}  Qe2 {[%clk 0:00:05]} 68. Qc3 {[%clk 0:00:03]}  Qf2+ {[%clk 0:00:04]} 69. Ke4 {[%clk 0:00:03]}  Qg2+ {[%clk 0:00:03]} 70. Kf4 {[%clk 0:00:03]}  Qh2+ {[%clk 0:00:03]} 71. Ke4 {[%clk 0:00:03]}  Qh4+ {[%clk 0:00:03]} 72. Kf5 {[%clk 0:00:03]}  Qh5+ {[%clk 0:00:03]} 73. Kf4 {[%clk 0:00:03]}  Qh6+ {[%clk 0:00:03]} 74. Kf5 {[%clk 0:00:03]}  Qf8+ {[%clk 0:00:02]} 75. Kg4 {[%clk 0:00:03]}  Qg8+ {[%clk 0:00:02]} 76. Kf5 {[%clk 0:00:03]}  Qf7+ {[%clk 0:00:02]} 77. Kg4 {[%clk 0:00:03]}  Qe6+ {[%clk 0:00:02]} 78. Kf4 {[%clk 0:00:03]}  Qh6+ {[%clk 0:00:01]} 79. Kg4 {[%clk 0:00:03]}  Qg6+ {[%clk 0:00:01]} 80. Kf3 {[%clk 0:00:03]}  Qf5+ {[%clk 0:00:02]} 81. Kg3 {[%clk 0:00:04]}  Qg5+ {[%clk 0:00:01]} 82. Kf3 {[%clk 0:00:04]}  Qh5+ {[%clk 0:00:01]} 83. Kg3 {[%clk 0:00:04]}  Qh6 {[%clk 0:00:02]} 84. a4 {[%clk 0:00:02]}  Qg6+ {[%clk 0:00:01]} 85. Kf3 {[%clk 0:00:02]}  Qf5+ {[%clk 0:00:02]} 86. Kg3 {[%clk 0:00:02]}  Qg6+ {[%clk 0:00:02]} 87. Kf4 {[%clk 0:00:02]}  Qf7+ {[%clk 0:00:02]} 88. Kg4 {[%clk 0:00:02]}  Qg8+ {[%clk 0:00:02]} 89. Kf5 {[%clk 0:00:03]}  Qe8 {[%clk 0:00:03]} 90. a5 {[%clk 0:00:02]}  Ke2 {[%clk 0:00:03]} 91. Qc4+ {[%clk 0:00:01]}  Kf2 {[%clk 0:00:03]} 92. Qf4+ {[%clk 0:00:01]}  Ke1 {[%clk 0:00:03]} 93. Qg3+ {[%clk 0:00:01]}  Kd1 {[%clk 0:00:03]} 0-1


[Site "https://www.chess.com"]

[Event "Titled Tuesday Blitz April 05 Early 2022"]
[White "Matveeva, Olga"]
[Black "Kouskoutis, Georgios-Alexandros"]
[WhiteFideId "24107018"]
[BlackFideId "4234049"]
[WhiteElo "2083"]
[BlackElo "2130"]
[Result "1-0"]
[Round "09"]
[TimeControl "180+1"]
[Date "2022.04.05"]
[WhiteClock "0:00:20"]
[BlackClock "0:00:01"]

1. d4 {[%clk 0:03:00]}  Nf6 {[%clk 0:02:53]} 2. c4 {[%clk 0:03:00]}  e6 {[%clk 0:02:53]} 3. g3 {[%clk 0:02:59]}  c5 {[%clk 0:02:52]} 4. d5 {[%clk 0:02:59]}  exd5 {[%clk 0:02:53]} 5. cxd5 {[%clk 0:02:59]}  d6 {[%clk 0:02:54]} 6. Nc3 {[%clk 0:03:00]}  g6 {[%clk 0:02:27]} 7. Bg2 {[%clk 0:03:00]}  Bg7 {[%clk 0:02:27]} 8. Nf3 {[%clk 0:03:00]}  O-O {[%clk 0:02:27]} 9. O-O {[%clk 0:03:00]}  a6 {[%clk 0:02:23]} 10. a4 {[%clk 0:02:59]}  Re8 {[%clk 0:02:23]} 11. Nd2 {[%clk 0:02:59]}  Nbd7 {[%clk 0:02:22]} 12. h3 {[%clk 0:02:59]}  Rb8 {[%clk 0:02:14]} 13. Nc4 {[%clk 0:02:57]}  Ne5 {[%clk 0:02:09]} 14. Na3 {[%clk 0:02:57]}  Nh5 {[%clk 0:01:57]} 15. e4 {[%clk 0:02:56]}  c4 {[%clk 0:01:08]} 16. Be3 {[%clk 0:02:20]}  Bd7 {[%clk 0:00:54]} 17. a5 {[%clk 0:02:17]}  Nd3 {[%clk 0:00:33]} 18. Nxc4 {[%clk 0:02:13]}  Nxb2 {[%clk 0:00:31]} 19. Nxb2 {[%clk 0:02:10]}  Bxc3 {[%clk 0:00:32]} 20. Bb6 {[%clk 0:02:07]}  Qf6 {[%clk 0:00:29]} 21. Nc4 {[%clk 0:01:51]}  Bb5 {[%clk 0:00:23]} 22. e5 {[%clk 0:01:31]}  dxe5 {[%clk 0:00:15]} 23. Rc1 {[%clk 0:01:15]}  Bxc4 {[%clk 0:00:14]} 24. Rxc3 {[%clk 0:01:15]}  Bxf1 {[%clk 0:00:14]} 25. Qxf1 {[%clk 0:01:12]}  e4 {[%clk 0:00:11]} 26. Rc7 {[%clk 0:01:04]}  Rbd8 {[%clk 0:00:06]} 27. Qc4 {[%clk 0:00:55]}  e3 {[%clk 0:00:05]} 28. fxe3 {[%clk 0:00:51]}  Nxg3 {[%clk 0:00:05]} 29. Rxb7 {[%clk 0:00:46]}  Qa1+ {[%clk 0:00:02]} 30. Kh2 {[%clk 0:00:46]}  Nf5 {[%clk 0:00:02]} 31. Bxd8 {[%clk 0:00:32]}  Rxd8 {[%clk 0:00:03]} 32. Qf4 {[%clk 0:00:30]}  Qf6 {[%clk 0:00:02]} 33. Rb6 {[%clk 0:00:28]}  Qe7 {[%clk 0:00:01]} 34. Rxa6 {[%clk 0:00:28]}  Nd6 {[%clk 0:00:01]} 35. Rc6 {[%clk 0:00:25]}  Nf5 {[%clk 0:00:01]} 36. a6 {[%clk 0:00:24]}  Nxe3 {[%clk 0:00:01]} 37. Be4 {[%clk 0:00:21]}  f5 {[%clk 0:00:01]} 38. Bf3 {[%clk 0:00:20]} 1-0


[Site "https://www.chess.com"]

[Event "Titled Tuesday Blitz April 05 Early 2022"]
[White "Mikhnenko, Alexander"]
[Black "Khamdamova, Afruza"]
[WhiteFideId "34143014"]
[BlackFideId "14210444"]
[WhiteElo "2117"]
[BlackElo "1660"]
[Result "0-1"]
[Round "09"]
[TimeControl "180+1"]
[Date "2022.04.05"]
[WhiteClock "0:01:41"]
[BlackClock "0:00:27"]

1. e4 {[%clk 0:02:59]}  e5 {[%clk 0:02:59]} 2. Nf3 {[%clk 0:02:59]}  Nf6 {[%clk 0:02:59]} 3. Nxe5 {[%clk 0:02:58]}  d6 {[%clk 0:02:59]} 4. Nf3 {[%clk 0:02:58]}  Nxe4 {[%clk 0:02:59]} 5. d4 {[%clk 0:02:59]}  d5 {[%clk 0:02:58]} 6. Bd3 {[%clk 0:02:59]}  Nc6 {[%clk 0:02:58]} 7. O-O {[%clk 0:03:00]}  Be7 {[%clk 0:02:58]} 8. c4 {[%clk 0:02:59]}  Nf6 {[%clk 0:02:53]} 9. Nc3 {[%clk 0:02:58]}  Bg4 {[%clk 0:02:47]} 10. cxd5 {[%clk 0:02:58]}  Nxd5 {[%clk 0:02:46]} 11. Bc4 {[%clk 0:02:58]}  Nb6 {[%clk 0:02:37]} 12. Bb3 {[%clk 0:02:55]}  O-O {[%clk 0:02:32]} 13. Be3 {[%clk 0:02:52]}  Bf6 {[%clk 0:02:30]} 14. h3 {[%clk 0:02:49]}  Bh5 {[%clk 0:02:10]} 15. d5 {[%clk 0:02:40]}  Ne5 {[%clk 0:02:05]} 16. g4 {[%clk 0:02:38]}  Nxf3+ {[%clk 0:01:59]} 17. Qxf3 {[%clk 0:02:39]}  Bg6 {[%clk 0:01:58]} 18. Qg2 {[%clk 0:02:39]}  Bd3 {[%clk 0:01:44]} 19. Rfd1 {[%clk 0:02:38]}  Bc4 {[%clk 0:01:43]} 20. g5 {[%clk 0:02:38]}  Bxc3 {[%clk 0:01:38]} 21. bxc3 {[%clk 0:02:37]}  Be2 {[%clk 0:01:14]} 22. Rd4 {[%clk 0:02:36]}  Nd7 {[%clk 0:01:06]} 23. d6 {[%clk 0:02:34]}  Ne5 {[%clk 0:00:54]} 24. f4 {[%clk 0:02:25]}  Nf3+ {[%clk 0:00:52]} 25. Kf2 {[%clk 0:02:25]}  Nxd4 {[%clk 0:00:51]} 26. Bxd4 {[%clk 0:02:26]}  Bh5 {[%clk 0:00:48]} 27. f5 {[%clk 0:02:23]}  Qxd6 {[%clk 0:00:44]} 28. Kg1 {[%clk 0:02:18]}  Rae8 {[%clk 0:00:40]} 29. Rf1 {[%clk 0:02:05]}  Re2 {[%clk 0:00:39]} 30. Rf2 {[%clk 0:02:05]}  Rfe8 {[%clk 0:00:38]} 31. g6 {[%clk 0:02:03]}  hxg6 {[%clk 0:00:34]} 32. f6 {[%clk 0:02:02]}  gxf6 {[%clk 0:00:30]} 33. Rxe2 {[%clk 0:01:51]}  Rxe2 {[%clk 0:00:29]} 34. Qxb7 {[%clk 0:01:43]}  Qg3+ {[%clk 0:00:27]} 35. Kf1 {[%clk 0:01:41]}  Re1# {[%clk 0:00:27]} 0-1


[Site "https://www.chess.com"]

[Event "Titled Tuesday Blitz April 05 Early 2022"]
[White "Miszler, Levente"]
[Black "Butti, Enrique"]
[WhiteFideId "763276"]
[BlackFideId "3700470"]
[WhiteElo "1966"]
[BlackElo "2080"]
[Result "1-0"]
[Round "09"]
[TimeControl "180+1"]
[Date "2022.04.05"]
[WhiteClock "0:00:46"]
[BlackClock "0:00:27"]

1. Nf3 {[%clk 0:03:00]}  c5 {[%clk 0:02:57]} 2. e4 {[%clk 0:02:59]}  d6 {[%clk 0:02:55]} 3. Bb5+ {[%clk 0:02:57]}  Bd7 {[%clk 0:02:54]} 4. Bxd7+ {[%clk 0:02:55]}  Qxd7 {[%clk 0:02:53]} 5. c4 {[%clk 0:02:55]}  Nc6 {[%clk 0:02:51]} 6. Nc3 {[%clk 0:02:54]}  Nf6 {[%clk 0:02:47]} 7. d4 {[%clk 0:02:49]}  cxd4 {[%clk 0:02:46]} 8. Nxd4 {[%clk 0:02:50]}  e6 {[%clk 0:02:46]} 9. Be3 {[%clk 0:02:44]}  Be7 {[%clk 0:02:44]} 10. Nxc6 {[%clk 0:02:32]}  Qxc6 {[%clk 0:02:42]} 11. Qd3 {[%clk 0:02:24]}  Rc8 {[%clk 0:02:32]} 12. b3 {[%clk 0:02:22]}  a6 {[%clk 0:02:31]} 13. Rc1 {[%clk 0:01:53]}  O-O {[%clk 0:02:29]} 14. O-O {[%clk 0:01:52]}  Rfd8 {[%clk 0:02:25]} 15. Rfd1 {[%clk 0:01:40]}  Nd7 {[%clk 0:02:12]} 16. f3 {[%clk 0:01:34]}  Nc5 {[%clk 0:02:09]} 17. Qe2 {[%clk 0:01:31]}  Bf6 {[%clk 0:01:57]} 18. Bd4 {[%clk 0:01:27]}  Bxd4+ {[%clk 0:01:40]} 19. Rxd4 {[%clk 0:01:28]}  Rd7 {[%clk 0:01:32]} 20. Rcd1 {[%clk 0:01:27]}  Rcd8 {[%clk 0:01:32]} 21. Qf2 {[%clk 0:01:24]}  b5 {[%clk 0:01:24]} 22. cxb5 {[%clk 0:01:13]}  axb5 {[%clk 0:01:24]} 23. Ne2 {[%clk 0:01:03]}  e5 {[%clk 0:01:08]} 24. Rd5 {[%clk 0:01:02]}  b4 {[%clk 0:01:07]} 25. Ng3 {[%clk 0:01:00]}  g6 {[%clk 0:01:06]} 26. Nf1 {[%clk 0:00:58]}  Ra8 {[%clk 0:01:00]} 27. Ne3 {[%clk 0:00:55]}  Rda7 {[%clk 0:00:46]} 28. Rxd6 {[%clk 0:00:54]}  Qc7 {[%clk 0:00:43]} 29. R6d2 {[%clk 0:00:52]}  Ne6 {[%clk 0:00:38]} 30. Nc4 {[%clk 0:00:47]}  Nd4 {[%clk 0:00:29]} 31. Nxe5 {[%clk 0:00:46]}  Qxe5 {[%clk 0:00:27]} 32. Qxd4 {[%clk 0:00:46]} 1-0


[Site "https://www.chess.com"]

[Event "Titled Tuesday Blitz April 05 Early 2022"]
[White "Mogirzan, Matei-Valeriu"]
[Black "Van den Dikkenberg, Erik"]
[WhiteFideId "1257455"]
[BlackFideId "1005880"]
[WhiteElo "1733"]
[BlackElo "2118"]
[Result "1-0"]
[Round "09"]
[TimeControl "180+1"]
[Date "2022.04.05"]
[WhiteClock "0:00:01"]
[BlackClock "0:00:13"]

1. f3 {[%clk 0:02:52]}  e5 {[%clk 0:02:57]} 2. Kf2 {[%clk 0:02:52]}  d5 {[%clk 0:02:56]} 3. e3 {[%clk 0:02:52]}  Bc5 {[%clk 0:02:55]} 4. g3 {[%clk 0:02:52]}  h5 {[%clk 0:02:54]} 5. Kg2 {[%clk 0:02:51]}  h4 {[%clk 0:02:53]} 6. g4 {[%clk 0:02:49]}  f5 {[%clk 0:02:53]} 7. h3 {[%clk 0:02:48]}  fxg4 {[%clk 0:02:53]} 8. hxg4 {[%clk 0:02:48]}  Nc6 {[%clk 0:02:50]} 9. c3 {[%clk 0:02:44]}  Be6 {[%clk 0:02:49]} 10. d4 {[%clk 0:02:42]}  exd4 {[%clk 0:02:48]} 11. exd4 {[%clk 0:02:41]}  Bd6 {[%clk 0:02:47]} 12. f4 {[%clk 0:02:40]}  Qf6 {[%clk 0:02:37]} 13. f5 {[%clk 0:02:33]}  Bd7 {[%clk 0:02:32]} 14. Bd3 {[%clk 0:02:29]}  O-O-O {[%clk 0:02:16]} 15. Nh3 {[%clk 0:02:22]}  Nxd4 {[%clk 0:01:58]} 16. Bg5 {[%clk 0:02:07]}  Qe5 {[%clk 0:01:56]} 17. Bf4 {[%clk 0:02:05]}  Qf6 {[%clk 0:01:50]} 18. g5 {[%clk 0:02:03]}  Qf8 {[%clk 0:01:42]} 19. cxd4 {[%clk 0:01:54]}  Bxf5 {[%clk 0:01:32]} 20. Bxf5+ {[%clk 0:01:43]}  Qxf5 {[%clk 0:01:31]} 21. Bxd6 {[%clk 0:01:42]}  Rxd6 {[%clk 0:01:31]} 22. Qf3 {[%clk 0:01:41]}  Qc2+ {[%clk 0:01:26]} 23. Nf2 {[%clk 0:01:35]}  Ne7 {[%clk 0:01:21]} 24. Nc3 {[%clk 0:01:30]}  Ng6 {[%clk 0:01:11]} 25. Rac1 {[%clk 0:01:13]}  Qxb2 {[%clk 0:01:08]} 26. Rb1 {[%clk 0:01:00]}  Qc2 {[%clk 0:01:02]} 27. Rhc1 {[%clk 0:00:57]}  h3+ {[%clk 0:00:57]} 28. Kh1 {[%clk 0:00:46]}  Qd2 {[%clk 0:00:55]} 29. Nxd5 {[%clk 0:00:34]}  Rf8 {[%clk 0:00:48]} 30. Rxc7+ {[%clk 0:00:28]}  Kd8 {[%clk 0:00:48]} 31. Rbxb7 {[%clk 0:00:08]}  Qc1+ {[%clk 0:00:18]} 32. Rxc1 {[%clk 0:00:05]}  Rxf3 {[%clk 0:00:17]} 33. Rxg7 {[%clk 0:00:02]}  Nh4 {[%clk 0:00:15]} 34. Rb1 {[%clk 0:00:02]}  Rf8 {[%clk 0:00:13]} 35. Rb8# {[%clk 0:00:01]} 1-0


[Site "https://www.chess.com"]

[Event "Titled Tuesday Blitz April 05 Early 2022"]
[White "Pacheco Lugo, Alejandro Jose"]
[Black "Tuleyeva-Aketayeva, Dana"]
[WhiteFideId "3903745"]
[BlackFideId "13701932"]
[WhiteElo "2146"]
[BlackElo "1875"]
[Result "1-0"]
[Round "09"]
[TimeControl "180+1"]
[Date "2022.04.05"]
[WhiteClock "0:02:03"]
[BlackClock "0:00:04"]

1. e4 {[%clk 0:03:00]}  c5 {[%clk 0:02:51]} 2. Nf3 {[%clk 0:03:00]}  Nc6 {[%clk 0:02:51]} 3. d4 {[%clk 0:03:00]}  cxd4 {[%clk 0:02:51]} 4. Nxd4 {[%clk 0:03:01]}  g6 {[%clk 0:02:51]} 5. c4 {[%clk 0:03:00]}  Bg7 {[%clk 0:02:51]} 6. Be3 {[%clk 0:02:58]}  Nf6 {[%clk 0:02:51]} 7. Nc3 {[%clk 0:02:58]}  O-O {[%clk 0:02:50]} 8. Be2 {[%clk 0:02:58]}  d6 {[%clk 0:02:50]} 9. O-O {[%clk 0:02:57]}  a5 {[%clk 0:02:50]} 10. h3 {[%clk 0:02:55]}  Bd7 {[%clk 0:02:42]} 11. Ndb5 {[%clk 0:02:52]}  a4 {[%clk 0:02:21]} 12. a3 {[%clk 0:02:47]}  Ne8 {[%clk 0:01:53]} 13. Nxa4 {[%clk 0:02:33]}  Nc7 {[%clk 0:01:40]} 14. Bb6 {[%clk 0:02:33]}  Rc8 {[%clk 0:01:06]} 15. Nac3 {[%clk 0:02:28]}  Ne5 {[%clk 0:00:55]} 16. Nxc7 {[%clk 0:02:26]}  Rxc7 {[%clk 0:00:53]} 17. Nd5 {[%clk 0:02:25]}  Nc6 {[%clk 0:00:33]} 18. Rb1 {[%clk 0:02:15]}  f5 {[%clk 0:00:24]} 19. exf5 {[%clk 0:02:08]}  Bxf5 {[%clk 0:00:23]} 20. Bd3 {[%clk 0:02:09]}  Bxd3 {[%clk 0:00:20]} 21. Qxd3 {[%clk 0:02:10]}  Ne5 {[%clk 0:00:21]} 22. Qe2 {[%clk 0:02:09]}  e6 {[%clk 0:00:16]} 23. Nxc7 {[%clk 0:02:08]}  Rf7 {[%clk 0:00:07]} 24. Nd5 {[%clk 0:02:06]}  Qg5 {[%clk 0:00:06]} 25. f4 {[%clk 0:02:05]}  Rxf4 {[%clk 0:00:04]} 26. Nxf4 {[%clk 0:02:03]} 1-0


[Site "https://www.chess.com"]